fUST/lending_fUST_20240323
["ID","MTS","AMOUNT","RATE_DAILY","PERIOD"]
[320064454,1711128639291,-500.0,0.00025716,2]
[320064455,1711128639309,-500.0,0.00025717,2]
[320064456,1711128639318,-500.0,0.00025717,2]
[320064457,1711128639328,-500.0,0.00025717,2]
[320064458,1711128639337,-500.0,0.00025717,2]
[320064459,1711128639346,-1662.13,0.00025717,2]
[320064461,1711128639356,-458.29010584,0.00025717,2]
[320064463,1711128639366,-500.0,0.00025717,2]
[320064465,1711128639375,-500.0,0.00025717,2]
[320064467,1711128639386,-500.0,0.00025717,2]
[320064469,1711128639396,-500.0,0.00025717,2]
[320064470,1711128639405,-500.0,0.00025717,2]
[320064471,1711128639415,-500.0,0.00025717,2]
[320064472,1711128639424,-500.0,0.00025717,2]
[320064474,1711128639434,-500.0,0.00025717,2]
[320064475,1711128639444,-500.0,0.00025717,2]
[320064476,1711128639453,-500.0,0.00025717,2]
[320064477,1711128639462,-500.0,0.00025717,2]
[320064478,1711128639471,-500.0,0.00025717,2]
[320064479,1711128639480,-500.0,0.00025717,2]
[320064480,1711128639489,-500.0,0.00025717,2]
[320064481,1711128639498,-500.0,0.00025717,2]
[320064482,1711128639508,-500.0,0.00025717,2]
[320064483,1711128639517,-500.0,0.00025717,2]
[320064484,1711128639526,-500.0,0.00025717,2]
[320064485,1711128639535,-500.43857309,0.00025717,2]
[320064486,1711128639549,-500.0,0.00025717,2]
[320064487,1711128639558,-500.0,0.00025717,2]
[320064488,1711128639567,-397.63473474,0.00025717,2]
[320064489,1711128639576,-500.0,0.00025717,2]
[320064490,1711128639586,-500.0,0.00025717,2]
[320064491,1711128639595,-500.0,0.00025717,2]
[320064492,1711128639604,-505.27,0.00025717,2]
[320064493,1711128639614,-500.0,0.00025717,2]
[320064494,1711128639623,-500.0,0.00025717,2]
[320064497,1711128639751,-500.0,0.00025717,2]
[320064498,1711128639761,-667.69,0.00025717,2]
[320064499,1711128639772,-500.0,0.00025717,2]
[320064500,1711128639781,-500.0,0.00025717,2]
[320064501,1711128639793,-589.8,0.00025717,2]
[320064502,1711128639803,-500.0,0.00025717,2]
[320064503,1711128639813,-500.0,0.00025717,2]
[320064504,1711128639822,-500.0,0.00025717,2]
[320064505,1711128639832,-608.24,0.00025717,2]
[320064506,1711128639841,-1017.21,0.00025717,2]
[320064507,1711128639851,-500.0,0.00025717,2]
[320064508,1711128639861,-2144.32,0.00025717,2]
[320064509,1711128639870,-192.7722209,0.00025717,2]
[320064510,1711128639879,-394.71182017,0.00025717,2]
[320064511,1711128639889,-899.56,0.00025717,2]
[320064512,1711128639898,-500.0,0.00025717,2]
[320064513,1711128639907,-500.0,0.00025717,2]
[320064514,1711128639916,-1042.61,0.00025717,2]
[320064515,1711128639926,-500.26798743,0.00025717,2]
[320064516,1711128639934,-500.0,0.00025717,2]
[320064517,1711128639944,-500.0,0.00025717,2]
[320064518,1711128639953,-500.0,0.00025717,2]
[320064519,1711128639962,-1551.82,0.00025717,2]
[320064520,1711128639971,-500.0,0.00025717,2]
[320064521,1711128639981,-500.0,0.00025717,2]
[320064522,1711128639990,-1596.1,0.00025717,2]
[320064523,1711128639999,-500.0,0.00025717,2]
[320064524,1711128640009,-500.0,0.00025717,2]
[320064525,1711128640018,-500.0,0.00025717,2]
[320064526,1711128640026,-500.0,0.00025717,2]
[320064527,1711128640035,-500.0,0.00025717,2]
[320064528,1711128640046,-500.0,0.00025717,2]
[320064529,1711128640055,-500.0,0.00025717,2]
[320064530,1711128640064,-500.0,0.00025717,2]
[320064531,1711128640073,-500.0,0.00025717,30]
[320064532,1711128640082,-500.0,0.00025717,2]
[320064533,1711128640091,-209.97294759,0.00025717,2]
[320064534,1711128640099,-500.77745652,0.00025717,2]
[320064535,1711128640108,-500.0,0.00025717,2]
[320064536,1711128640117,-500.0,0.00025717,2]
[320064537,1711128640126,-500.0,0.00025717,2]
[320064538,1711128640135,-500.0,0.00025717,2]
[320064539,1711128640144,-500.0,0.00025717,2]
[320064540,1711128640153,-500.0,0.00025717,2]
[320064541,1711128640162,-500.0,0.00025717,2]
[320064542,1711128640171,-500.0,0.00025717,2]
[320064543,1711128640180,-500.0,0.00025717,2]
[320064544,1711128640189,-501.99497031,0.00025717,2]
[320064545,1711128640199,-500.0,0.00025717,2]
[320064546,1711128640208,-500.0,0.00025717,2]
[320064547,1711128640217,-500.43985307,0.00025717,2]
[320064548,1711128640227,-500.0,0.00025717,2]
[320064549,1711128640237,-500.0,0.00025717,2]
[320064550,1711128640246,-508.22981875,0.00025717,2]
[320064551,1711128640255,-500.0,0.00025717,2]
[320064552,1711128640264,-500.0,0.00025717,2]
[320064553,1711128640273,-500.0,0.00025717,2]
[320064554,1711128640282,-500.0,0.00025717,2]
[320064555,1711128640293,-500.0,0.00025717,2]
[320064556,1711128640302,-500.0,0.00025717,2]
[320064557,1711128640311,-166.34391731,0.00025717,2]
[320064558,1711128640320,-500.0,0.00025717,2]
[320064559,1711128640328,-500.0,0.00025718,2]
[320064560,1711128640337,-500.0,0.00025718,2]
[320064561,1711128640346,-500.0,0.00025718,2]
[320064562,1711128640354,-500.0,0.00025719,2]
[320064563,1711128640363,-500.0,0.00025719,2]
[320064564,1711128640372,-500.0,0.00025719,2]
[320064565,1711128640381,-500.0,0.00025719,2]
[320064566,1711128640390,-550.65275004,0.00025752,2]
[320064567,1711128640399,-550.65275004,0.00025889,2]
[320064568,1711128640408,-5069.2697757,0.0002595,2]
[320064569,1711128640417,-289.2649314,0.00026,2]
[320064570,1711128640426,-181.341903,0.00026,2]
[320064571,1711128640436,-306.0,0.00026,2]
[320064572,1711128640445,-153.0,0.00026,2]
[320064573,1711128640454,-153.0,0.00026,2]
[320064574,1711128640463,-550.65275004,0.00026026,2]
[320064575,1711128640472,-550.65275004,0.00026163,2]
[320064576,1711128640481,-3006.25,0.00026262,2]
[320064577,1711128640488,-1348.87,0.00026262,2]
[320064578,1711128640495,-4216.43,0.00026262,2]
[320064579,1711128640503,-1812.74,0.00026262,2]
[320064580,1711128640512,-774.86,0.00026262,2]
[320064581,1711128640521,-18972.3,0.00026262,2]
[320064582,1711128640531,-500.0,0.00026262,2]
[320064583,1711128640542,-1443.73,0.00026262,2]
[320064584,1711128640552,-688.07,0.00026262,2]
[320064585,1711128640562,-998.39,0.00026262,2]
[320064586,1711128640571,-4054.35,0.00026262,2]
[320064587,1711128640580,-32019.17,0.00026262,2]
[320064588,1711128640589,-1443.94,0.00026262,2]
[320064589,1711128640598,-7602.71,0.00026262,2]
[320064590,1711128640607,-500.0,0.00026262,2]
[320064591,1711128640620,-500.0,0.00026263,2]
[320064592,1711128640630,-500.0,0.00026263,2]
[320064593,1711128640639,-468.6163875,0.00026263,2]
[320064594,1711128640648,-500.0,0.00026263,2]
[320064595,1711128640658,-500.0,0.00026263,2]
[320064596,1711128640668,-500.0,0.00026263,2]
[320064597,1711128640677,-500.0,0.00026263,2]
[320064598,1711128640686,-500.0,0.00026263,2]
[320064599,1711128640695,-500.0,0.00026263,2]
[320064600,1711128640706,-500.0,0.00026263,2]
[320064601,1711128640716,-500.0,0.00026263,2]
[320064602,1711128640725,-500.0,0.00026263,2]
[320064603,1711128640734,-640.23,0.00026263,2]
[320064604,1711128640743,-500.0,0.00026263,2]
[320064605,1711128640751,-500.0,0.00026263,2]
[320064606,1711128640760,-500.0,0.00026263,2]
[320064607,1711128640770,-195.25597614,0.00026263,2]
[320064608,1711128640779,-500.0,0.00026263,2]
[320064609,1711128640788,-500.0,0.00026263,2]
[320064610,1711128640801,-500.0,0.00026263,2]
[320064611,1711128640811,-500.0,0.00026263,2]
[320064612,1711128640820,-500.0,0.00026263,2]
[320064613,1711128640829,-500.0,0.00026263,2]
[320064614,1711128640839,-500.0,0.00026263,2]
[320064615,1711128640848,-500.0,0.00026263,2]
[320064616,1711128640857,-500.0,0.00026263,2]
[320064617,1711128640866,-1535.68,0.00026263,2]
[320064618,1711128640876,-4226.96,0.00026263,2]
[320064619,1711128640885,-500.0,0.00026263,2]
[320064620,1711128640894,-576.02,0.00026263,2]
[320064621,1711128640903,-500.0,0.00026263,2]
[320064622,1711128640912,-500.0,0.00026263,2]
[320064623,1711128640922,-500.0,0.00026263,2]
[320064624,1711128640932,-650.39,0.00026263,2]
[320064625,1711128640941,-529.01,0.00026263,2]
[320064626,1711128640951,-504.38,0.00026263,2]
[320064627,1711128640960,-500.0,0.00026263,2]
[320064628,1711128640970,-500.0,0.00026263,2]
[320064629,1711128640979,-500.0,0.00026263,2]
[320064630,1711128640988,-500.0,0.00026263,2]
[320064631,1711128640997,-500.0,0.00026263,2]
[320064632,1711128641007,-1895.28,0.00026263,2]
[320064633,1711128641016,-681.43,0.00026263,2]
[320064634,1711128641025,-2365.65,0.00026263,2]
[320064635,1711128641034,-1722.28,0.00026263,2]
[320064636,1711128641045,-500.0,0.00026263,2]
[320064637,1711128641054,-500.0,0.00026263,2]
[320064638,1711128641063,-500.0,0.00026263,2]
[320064639,1711128641073,-500.0,0.00026263,2]
[320064640,1711128641082,-500.0,0.00026263,2]
[320064641,1711128641091,-500.0,0.00026263,2]
[320064642,1711128641101,-500.0,0.00026263,2]
[320064643,1711128641110,-500.0,0.00026263,2]
[320064644,1711128641120,-21627.13,0.00026263,2]
[320064645,1711128641129,-22125.45,0.00026263,2]
[320064646,1711128641138,-500.0,0.00026263,2]
[320064647,1711128641147,-500.0,0.00026263,2]
[320064648,1711128641157,-500.0,0.00026263,2]
[320064649,1711128641166,-500.0,0.00026263,2]
[320064650,1711128641175,-1891.01,0.00026263,2]
[320064651,1711128641186,-500.0,0.00026263,2]
[320064652,1711128641195,-500.0,0.00026263,2]
[320064653,1711128641204,-837.53,0.00026263,2]
[320064654,1711128641213,-5345.52,0.00026263,2]
[320064655,1711128641222,-500.0,0.00026263,2]
[320064656,1711128641231,-500.0,0.00026263,2]
[320064657,1711128641240,-500.0,0.00026263,2]
[320064658,1711128641249,-500.0,0.00026263,2]
[320064659,1711128641258,-500.0,0.00026263,2]
[320064660,1711128641267,-500.0,0.00026263,2]
[320064661,1711128641277,-500.0,0.00026263,2]
[320064662,1711128641286,-603.53,0.00026263,2]
[320064663,1711128641301,-500.0,0.00026263,2]
[320064664,1711128641310,-500.0,0.00026263,2]
[320064665,1711128641319,-1263.23,0.00026264,2]
[320064666,1711128641328,-500.0,0.00026264,2]
[320064667,1711128641337,-836.33,0.00026264,2]
[320064668,1711128641347,-3120.61,0.00026264,2]
[320064669,1711128641356,-1778.66,0.00026264,2]
[320064670,1711128641365,-500.0,0.00026264,2]
[320064671,1711128641374,-500.0,0.00026264,2]
[320064672,1711128641383,-500.0,0.00026264,2]
[320064673,1711128641392,-915.04,0.00026264,2]
[320064674,1711128641401,-629.83,0.00026264,2]
[320064675,1711128641410,-500.0,0.00026264,2]
[320064676,1711128641419,-500.0,0.00026264,2]
[320064677,1711128641427,-500.0,0.00026264,2]
[320064678,1711128641436,-500.0,0.00026264,2]
[320064679,1711128641445,-2112.54,0.00026264,2]
[320064680,1711128641454,-2011.54,0.00026264,2]
[320064681,1711128641463,-501.90478215,0.00026264,2]
[320064682,1711128641472,-500.0,0.00026264,2]
[320064683,1711128641481,-500.0,0.00026264,2]
[320064684,1711128641490,-500.0,0.00026265,2]
[320064685,1711128641500,-500.0,0.00026265,2]
[320064686,1711128641510,-1662.13,0.00026265,2]
[320064687,1711128641519,-500.0,0.00026265,2]
[320064688,1711128641528,-500.0,0.00026265,2]
[320064689,1711128641538,-261.9357256,0.00026265,2]
[320064690,1711128641555,-500.0,0.00026265,2]
[320064691,1711128641565,-500.0,0.00026265,2]
[320064692,1711128641575,-500.0,0.00026265,2]
[320064693,1711128641584,-500.0,0.00026265,2]
[320064694,1711128641593,-500.0,0.00026265,2]
[320064695,1711128641603,-500.0,0.00026265,2]
[320064696,1711128641613,-500.0,0.00026265,2]
[320064697,1711128641626,-500.0,0.00026265,2]
[320064698,1711128641636,-500.0,0.00026265,2]
[320064699,1711128641645,-500.0,0.00026265,2]
[320064700,1711128641654,-500.0,0.00026265,2]
[320064701,1711128641664,-500.0,0.00026265,2]
[320064702,1711128641673,-500.0,0.00026265,2]
[320064703,1711128641683,-500.0,0.00026265,2]
[320064704,1711128641691,-500.0,0.00026265,2]
[320064705,1711128641700,-500.0,0.00026265,2]
[320064706,1711128641710,-505.27,0.00026265,2]
[320064707,1711128641720,-500.0,0.00026265,2]
[320064708,1711128641729,-500.0,0.00026265,2]
[320064709,1711128641739,-667.69,0.00026265,2]
[320064710,1711128641748,-500.0,0.00026265,2]
[320064711,1711128641758,-589.8,0.00026265,2]
[320064712,1711128641767,-500.0,0.00026265,2]
[320064713,1711128641778,-500.0,0.00026265,2]
[320064714,1711128641788,-1017.21,0.00026265,2]
[320064715,1711128641805,-500.0,0.00026265,2]
[320064716,1711128641814,-2144.32,0.00026265,2]
[320064717,1711128641824,-899.56,0.00026265,2]
[320064718,1711128641834,-500.0,0.00026265,2]
[320064719,1711128641844,-1042.61,0.00026265,2]
[320064720,1711128641856,-500.0,0.00026265,2]
[320064721,1711128641865,-500.0,0.00026265,2]
[320064722,1711128641875,-1551.82,0.00026265,2]
[320064723,1711128641886,-500.0,0.00026265,2]
[320064724,1711128641896,-1596.1,0.00026265,2]
[320064725,1711128641906,-500.0,0.00026265,2]
[320064726,1711128641915,-500.0,0.00026265,2]
[320064727,1711128641924,-500.0,0.00026265,2]
[320064728,1711128641933,-500.0,0.00026265,2]
[320064729,1711128641943,-295.49281063,0.00026265,2]
[320064730,1711128641952,-500.0,0.00026265,2]
[320064731,1711128641961,-500.0,0.00026265,2]
[320064732,1711128641970,-500.0,0.00026265,2]
[320064733,1711128641979,-500.0,0.00026265,2]
[320064734,1711128641989,-500.0,0.00026265,2]
[320064735,1711128641998,-500.0,0.00026265,2]
[320064736,1711128642007,-500.0,0.00026265,2]
[320064737,1711128642016,-500.0,0.00026265,2]
[320064738,1711128642026,-500.0,0.00026265,2]
[320064739,1711128642035,-500.0,0.00026265,2]
[320064740,1711128642049,-500.0,0.00026266,2]
[320064741,1711128642059,-500.0,0.00026266,2]
[320064742,1711128642068,-500.0,0.00026267,2]
[320064743,1711128642077,-500.0,0.00026267,2]
[320064744,1711128642086,-500.0,0.00026267,2]
[320064745,1711128642095,-500.0,0.00026267,2]
[320064746,1711128642104,-1104.30141951,0.00026551,2]
[320064747,1711128642113,-1923.05022882,0.0002671,2]
[320064748,1711128642123,-1000.0,0.00026711,2]
[320064749,1711128642132,-2000.0,0.000268,2]
[320064750,1711128642141,-3006.25,0.0002681,2]
[320064751,1711128642151,-1348.87,0.0002681,2]
[320064752,1711128642160,-4216.43,0.0002681,2]
[320064753,1711128642170,-1812.74,0.0002681,2]
[320064754,1711128642181,-774.86,0.0002681,2]
[320064755,1711128642190,-18972.3,0.0002681,2]
[320064756,1711128642200,-500.0,0.0002681,2]
[320064757,1711128642210,-1443.73,0.0002681,2]
[320064758,1711128642219,-688.07,0.0002681,2]
[320064759,1711128642229,-998.39,0.0002681,2]
[320064760,1711128642238,-4054.35,0.0002681,2]
[320064761,1711128642247,-1543.57913861,0.0002681,2]
[320064762,1711128642265,-24342.96862308,0.0002681,2]
[320064765,1711128642854,-500.0,0.00025715,2]
[320064766,1711128642864,-500.0,0.00025715,2]
[320064767,1711128642873,-500.0,0.00026263,2]
[320064768,1711128642882,-1481.49613281,0.0002681,2]
[320064790,1711128645927,-500.0,0.00025717,2]
[320064791,1711128645936,-306.0,0.00026,2]
[320064792,1711128645945,-4651.1261055,0.0002681,2]
[320064793,1711128645955,-1443.94,0.0002681,2]
[320064794,1711128645965,-7602.71,0.0002681,2]
[320064795,1711128645974,-321.85747366,0.0002681,2]
[320064796,1711128645983,-500.0,0.00026811,2]
[320064797,1711128645992,-500.0,0.00026811,2]
[320064798,1711128646001,-500.0,0.00026811,2]
[320064799,1711128646011,-500.0,0.00026811,2]
[320064800,1711128646021,-500.0,0.00026811,2]
[320064801,1711128646030,-500.0,0.00026811,2]
[320064802,1711128646039,-500.0,0.00026811,2]
[320064803,1711128646051,-500.0,0.00026811,2]
[320064804,1711128646060,-500.0,0.00026811,2]
[320064805,1711128646069,-640.23,0.00026811,2]
[320064806,1711128646079,-500.0,0.00026811,2]
[320064807,1711128646088,-500.0,0.00026811,2]
[320064808,1711128646097,-500.0,0.00026811,2]
[320064809,1711128646107,-500.0,0.00026811,2]
[320064810,1711128646116,-500.0,0.00026811,2]
[320064811,1711128646125,-500.0,0.00026811,2]
[320064812,1711128646134,-200.0,0.00026811,2]
[320064813,1711128646144,-500.0,0.00026811,2]
[320064814,1711128646153,-500.0,0.00026811,2]
[320064815,1711128646163,-500.0,0.00026811,2]
[320064816,1711128646172,-500.0,0.00026811,2]
[320064817,1711128646182,-1535.68,0.00026811,2]
[320064818,1711128646191,-500.0,0.00026811,2]
[320064819,1711128646201,-576.02,0.00026811,2]
[320064820,1711128646210,-500.0,0.00026811,2]
[320064821,1711128646219,-500.0,0.00026811,2]
[320064822,1711128646229,-500.0,0.00026811,2]
[320064823,1711128646238,-650.39,0.00026811,2]
[320064824,1711128646247,-529.01,0.00026811,2]
[320064825,1711128646256,-504.38,0.00026811,2]
[320064826,1711128646266,-540.37427772,0.00026811,2]
[320064827,1711128646275,-500.0,0.00026811,2]
[320064828,1711128646285,-500.37151895,0.00026811,2]
[320064829,1711128646296,-500.0,0.00026811,2]
[320064830,1711128646305,-1895.28,0.00026811,2]
[320064831,1711128646315,-681.43,0.00026811,2]
[320064832,1711128646324,-2365.65,0.00026811,2]
[320064833,1711128646334,-1722.28,0.00026811,2]
[320064834,1711128646343,-499.8305,0.00026811,2]
[320064835,1711128646352,-500.0,0.00026811,2]
[320064836,1711128646361,-500.0,0.00026811,2]
[320064837,1711128646371,-500.0,0.00026811,2]
[320064838,1711128646380,-500.0,0.00026811,2]
[320064839,1711128646389,-500.0,0.00026811,2]
[320064840,1711128646399,-12733.30016706,0.00026811,2]
[320064909,1711129496164,-155.00155002,0.00024267,2]
[320064910,1711129496185,-8075.4479,0.00024267,2]
[320064911,1711129496206,-24900.0,0.00024268,2]
[320064912,1711129496231,-869.55054998,0.00024329,2]
[320065033,1711129837968,-1014.22546992,0.00022168,2]
[320065034,1711129837981,-39.41528169,0.00022168,2]
[320065035,1711129838198,-7854.14035029,0.00024085,2]
[320065036,1711129838210,-221.30754971,0.00024085,2]
[320065037,1711129838219,-971.61233756,0.00024086,2]
[320065038,1711129838228,-452.296144,0.0002419,2]
[320065039,1711129838237,-300.0,0.00024328,2]
[320065040,1711129838247,-11489.56584082,0.00024329,2]
[320065041,1711129838256,-205.664377,0.000246,2]
[320065042,1711129838266,-541.74649135,0.00025,120]
[320065043,1711129838275,-1043.3113712,0.00025197,2]
[320065044,1711129838284,-991.17495008,0.00025612,2]
[320065045,1711129838293,-1967.61186454,0.00025703,2]
[320065046,1711129838302,-151.80276999,0.00025703,2]
[320065047,1711129838311,-151.80276999,0.00025703,2]
[320065048,1711129838320,-192.19720625,0.00025709,2]
[320065049,1711129838329,-252.04090364,0.0002571,2]
[320065050,1711129838337,-202.96515959,0.0002571,2]
[320065051,1711129838346,-1717.14697503,0.0002571,2]
[320065052,1711129838355,-1609.06716003,0.00025711,2]
[320065053,1711129838364,-602.76739922,0.00025711,2]
[320065054,1711129838373,-180.00299186,0.00025711,2]
[320065055,1711129838382,-160.68166387,0.00025711,2]
[320065056,1711129838390,-469.98746995,0.00025711,2]
[320065057,1711129838399,-685.20411728,0.00025711,2]
[320065058,1711129838408,-449.76381226,0.00025711,2]
[320065059,1711129838417,-193.44587134,0.00025711,2]
[320065060,1711129838426,-451.63017508,0.00025711,2]
[320065061,1711129838435,-500.0,0.00025711,2]
[320065062,1711129838444,-500.0,0.00025711,2]
[320065063,1711129838453,-815.76,0.00025711,2]
[320065064,1711129838462,-500.0,0.00025711,2]
[320065065,1711129838471,-19690.53,0.00025711,2]
[320065066,1711129838480,-626.60944168,0.00025711,2]
[320065068,1711129838489,-500.0,0.00025711,2]
[320065070,1711129838499,-760.5,0.00025711,2]
[320065072,1711129838509,-500.0,0.00025711,2]
[320065074,1711129838519,-500.0,0.00025711,2]
[320065076,1711129838528,-500.0,0.00025711,2]
[320065077,1711129838536,-500.0,0.00025711,2]
[320065079,1711129838546,-659.4,0.00025711,2]
[320065081,1711129838555,-1002.18,0.00025711,2]
[320065083,1711129838564,-500.0,0.00025711,2]
[320065085,1711129838572,-500.0,0.00025711,2]
[320065087,1711129838581,-4061.7,0.00025711,2]
[320065089,1711129838590,-500.0,0.00025711,2]
[320065091,1711129838599,-500.0,0.00025711,2]
[320065093,1711129838607,-1394.51,0.00025711,2]
[320065095,1711129838616,-502.34938608,0.00025711,2]
[320065096,1711129838625,-500.0,0.00025711,2]
[320065098,1711129838634,-1407.71,0.00025711,2]
[320065099,1711129838643,-500.0,0.00025712,2]
[320065101,1711129838652,-500.0,0.00025712,2]
[320065103,1711129838661,-500.0,0.00025712,2]
[320065105,1711129838670,-500.0,0.00025712,2]
[320065106,1711129838679,-500.0,0.00025712,2]
[320065107,1711129838688,-500.0,0.00025712,2]
[320065109,1711129838697,-500.0,0.00025712,2]
[320065111,1711129838706,-554.77,0.00025712,2]
[320065112,1711129838715,-500.0,0.00025712,2]
[320065114,1711129838724,-500.0,0.00025712,2]
[320065116,1711129838733,-500.0,0.00025712,2]
[320065118,1711129838742,-500.0,0.00025712,2]
[320065120,1711129838753,-500.0,0.00025712,2]
[320065122,1711129838762,-625.75,0.00025712,2]
[320065124,1711129838772,-500.0,0.00025712,2]
[320065126,1711129838782,-2937.99,0.00025712,2]
[320065128,1711129838790,-1657.04,0.00025712,2]
[320065130,1711129838799,-500.0,0.00025712,2]
[320065131,1711129838808,-1423.32,0.00025712,2]
[320065132,1711129838817,-1782.25,0.00025712,2]
[320065133,1711129838826,-500.0,0.00025712,2]
[320065134,1711129838835,-4232.4,0.00025712,2]
[320065135,1711129838843,-500.0,0.00025712,2]
[320065136,1711129838852,-1828.68,0.00025712,2]
[320065137,1711129838861,-2281.99,0.00025712,2]
[320065138,1711129838870,-500.0,0.00025712,2]
[320065139,1711129838879,-500.0,0.00025712,2]
[320065140,1711129838887,-368.83574321,0.00025712,2]
[320065141,1711129838896,-500.0,0.00025712,2]
[320065142,1711129838905,-500.0,0.00025712,2]
[320065143,1711129838914,-500.0,0.00025712,2]
[320065144,1711129838924,-500.0,0.00025712,2]
[320065145,1711129838932,-500.0,0.00025712,2]
[320065146,1711129838941,-500.0,0.00025712,2]
[320065147,1711129838950,-21522.95,0.00025712,2]
[320065148,1711129838958,-1449.19,0.00025712,2]
[320065149,1711129838967,-500.0,0.00025712,2]
[320065150,1711129838977,-5122.79,0.00025712,2]
[320065151,1711129838987,-500.0,0.00025712,2]
[320065152,1711129838998,-500.0,0.00025712,2]
[320065153,1711129839007,-1334.0,0.00025712,2]
[320065154,1711129839016,-630.98,0.00025712,2]
[320065155,1711129839025,-500.0,0.00025712,2]
[320065156,1711129839036,-1894.44,0.00025712,2]
[320065157,1711129839045,-30807.36,0.00025712,2]
[320065158,1711129839054,-4772.44,0.00025712,2]
[320065159,1711129839063,-594.2940873,0.00025712,2]
[320065160,1711129839075,-500.0,0.00025712,2]
[320065161,1711129839085,-500.0,0.00025712,2]
[320065162,1711129839094,-500.0,0.00025712,2]
[320065163,1711129839102,-6993.17,0.00025712,2]
[320065164,1711129839111,-553.06,0.00025712,2]
[320065165,1711129839120,-500.0,0.00025713,2]
[320065166,1711129839129,-500.0,0.00025713,2]
[320065167,1711129839138,-500.0,0.00025713,2]
[320065169,1711129839147,-837.84,0.00025713,2]
[320065171,1711129839156,-516.37168215,0.00025713,2]
[320065173,1711129839166,-3126.26,0.00025713,2]
[320065175,1711129839175,-500.0,0.00025713,2]
[320065177,1711129839185,-500.0,0.00025713,2]
[320065179,1711129839194,-500.0,0.00025713,2]
[320065181,1711129839204,-500.0,0.00025713,2]
[320065183,1711129839213,-500.0,0.00025713,2]
[320065185,1711129839221,-500.0,0.00025713,2]
[320065187,1711129839231,-500.0,0.00025713,2]
[320065188,1711129839240,-500.0,0.00025713,2]
[320065191,1711129839250,-500.0,0.00025713,2]
[320065193,1711129839259,-298.13990406,0.00025713,2]
[320065195,1711129839270,-655.62,0.00025713,2]
[320065197,1711129839279,-500.0,0.00025713,2]
[320065198,1711129839288,-500.0,0.00025713,2]
[320065201,1711129839299,-507.92,0.00025713,2]
[320065203,1711129839308,-2116.36,0.00025713,2]
[320065205,1711129839319,-500.0,0.00025713,2]
[320065207,1711129839328,-2015.18,0.00025713,2]
[320065209,1711129839337,-503.0735052,0.00025713,2]
[320065211,1711129839346,-2317.49,0.00025713,2]
[320065213,1711129839355,-500.0,0.00025713,2]
[320065215,1711129839364,-500.0,0.00025713,2]
[320065217,1711129839374,-500.0,0.00025713,2]
[320065220,1711129839383,-500.0,0.00025713,2]
[320065223,1711129839393,-18364.06,0.00025713,2]
[320065225,1711129839402,-500.0,0.00025713,2]
[320065227,1711129839412,-500.0,0.00025713,2]
[320065229,1711129839421,-500.0,0.00025713,2]
[320065231,1711129839430,-500.0,0.00025713,2]
[320065233,1711129839439,-500.0,0.00025713,2]
[320065235,1711129839448,-500.0,0.00025713,2]
[320065237,1711129839458,-500.0,0.00025713,2]